fUST/lending_fUST_20250527
["ID","MTS","AMOUNT","RATE_DAILY","PERIOD"]
[362527308,1748351465957,-430.0,0.00021643,2]
[362527309,1748351465967,-430.0,0.00021643,2]
[362527310,1748351465977,-359.06,0.00021643,2]
[362527311,1748351465986,-278.84,0.00021643,2]
[362527312,1748351465995,-624.22,0.00021643,2]
[362527313,1748351466005,-545.27,0.00021643,2]
[362527314,1748351466015,-430.0,0.00021643,2]
[362527315,1748351466024,-489.01,0.00021643,2]
[362527316,1748351466034,-430.0,0.00021643,2]
[362527317,1748351466044,-430.0,0.00021643,2]
[362527318,1748351466056,-430.0,0.00021643,2]
[362527319,1748351466065,-1251.66,0.00021643,2]
[362527320,1748351466075,-430.0,0.00021643,2]
[362527321,1748351466084,-832.62,0.00021643,2]
[362527322,1748351466093,-574.93,0.00021643,2]
[362527323,1748351466103,-251.15,0.00021643,2]
[362527324,1748351466112,-570.09,0.00021643,2]
[362527325,1748351466122,-710.45166632,0.00021664,2]
[362527326,1748351466132,-2158.25,0.00021749,2]
[362527327,1748351466141,-2933.07380438,0.00021797,6]
[362527328,1748351466151,-1000.0,0.0002186,2]
[362527329,1748351466160,-151.0,0.00021917,2]
[362527330,1748351466170,-151.0,0.00021917,2]
[362527331,1748351466179,-430.0,0.00021917,2]
[362527332,1748351466190,-430.0,0.00021917,2]
[362527333,1748351466199,-997.26,0.00021917,2]
[362527334,1748351466209,-430.0,0.00021917,2]
[362527335,1748351466219,-430.0,0.00021917,2]
[362527336,1748351466228,-2536.38,0.00021917,2]
[362527337,1748351466238,-1436.42,0.00021917,2]
[362527338,1748351466248,-437.51,0.00021917,2]
[362527339,1748351466258,-975.12,0.00021917,2]
[362527340,1748351466268,-430.0,0.00021917,2]
[362527341,1748351466278,-430.0,0.00021917,2]
[362527342,1748351466287,-430.0,0.00021917,2]
[362527343,1748351466298,-430.0,0.00021917,2]
[362527344,1748351466312,-430.0,0.00021917,2]
[362527345,1748351466322,-631.14,0.00021917,2]
[362527346,1748351466332,-474.74,0.00021917,2]
[362527347,1748351466342,-1038.02,0.00021917,2]
[362527348,1748351466447,-2253.58,0.00021917,2]
[362527349,1748351466457,-1807.97,0.00021917,2]
[362527350,1748351466467,-430.0,0.00021917,2]
[362527351,1748351466478,-404.21,0.00021917,2]
[362527352,1748351466487,-624.22,0.00021917,2]
[362527353,1748351466497,-545.27,0.00021917,2]
[362527354,1748351466506,-548.88,0.00021917,2]
[362527355,1748351466515,-489.01,0.00021917,2]
[362527356,1748351466525,-480.23,0.00021917,2]
[362527357,1748351466535,-430.0,0.00021917,2]
[362527358,1748351466545,-430.0,0.00021917,2]
[362527359,1748351466557,-1251.66,0.00021917,2]
[362527360,1748351466567,-430.0,0.00021917,2]
[362527361,1748351466577,-832.62,0.00021917,2]
[362527362,1748351466588,-574.93,0.00021917,2]
[362527363,1748351466597,-570.09,0.00021917,2]
[362527364,1748351466607,-176.80455064,0.00021957,5]
[362527365,1748351466616,-2933.07380438,0.00022003,6]
[362527366,1748351466626,-151.0,0.00022004,7]
[362527367,1748351466636,-151.0,0.00022004,7]
[362527368,1748351466646,-258.64573,0.00022004,7]
[362527369,1748351466656,-258.64573,0.00022004,7]
[362527370,1748351466666,-430.0,0.00022191,2]
[362527371,1748351466675,-430.0,0.00022191,2]
[362527372,1748351466685,-997.26,0.00022191,2]
[362527373,1748351466695,-163.91,0.00022191,2]
[362527374,1748351466707,-430.0,0.00022191,2]
[362527375,1748351466718,-2536.38,0.00022191,2]
[362527376,1748351466727,-1436.42,0.00022191,2]
[362527377,1748351466737,-437.51,0.00022191,2]
[362527378,1748351466747,-975.12,0.00022191,2]
[362527379,1748351466756,-430.0,0.00022191,2]
[362527380,1748351466766,-430.0,0.00022191,2]
[362527381,1748351466775,-430.0,0.00022191,2]
[362527382,1748351466786,-430.0,0.00022191,2]
[362527383,1748351466796,-430.0,0.00022191,2]
[362527384,1748351466807,-631.14,0.00022191,2]
[362527385,1748351466817,-474.74,0.00022191,2]
[362527386,1748351466826,-1038.02,0.00022191,2]
[362527387,1748351466836,-2253.58,0.00022191,2]
[362527388,1748351466846,-1807.97,0.00022191,2]
[362527389,1748351466856,-430.0,0.00022191,2]
[362527390,1748351466866,-624.22,0.00022191,2]
[362527391,1748351466877,-545.27,0.00022191,2]
[362527392,1748351466887,-489.01,0.00022191,2]
[362527393,1748351466897,-430.0,0.00022191,2]
[362527394,1748351466907,-188.52,0.00022191,2]
[362527395,1748351466917,-1251.66,0.00022191,2]
[362527396,1748351466927,-430.0,0.00022191,2]
[362527397,1748351466936,-832.62,0.00022191,2]
[362527398,1748351466946,-574.93,0.00022191,2]
[362527399,1748351466956,-570.09,0.00022191,2]
[362527400,1748351466966,-152.884271,0.0002221,7]
[362527401,1748351466975,-151.0,0.0002221,7]
[362527402,1748351466985,-151.0,0.0002221,7]
[362527403,1748351466994,-2933.07380438,0.0002221,6]
[362527404,1748351467004,-215.0738,0.00022286,2]
[362527405,1748351467013,-176.41775351,0.00022408,2]
[362527406,1748351467023,-2933.07380438,0.00022417,7]
[362527407,1748351467034,-151.0,0.00022465,7]
[362527408,1748351467044,-430.0,0.00022465,2]
[362527409,1748351467054,-430.0,0.00022465,2]
[362527410,1748351467063,-997.26,0.00022465,2]
[362527411,1748351467073,-430.0,0.00022465,2]
[362527412,1748351467081,-2536.38,0.00022465,2]
[362527413,1748351467091,-1436.42,0.00022465,2]
[362527414,1748351467100,-437.51,0.00022465,2]
[362527415,1748351467110,-975.12,0.00022465,2]
[362527416,1748351467119,-430.0,0.00022465,2]
[362527417,1748351467129,-430.0,0.00022465,2]
[362527418,1748351467138,-430.0,0.00022465,2]
[362527419,1748351467148,-385.05555304,0.00022465,2]
[362527420,1748351467158,-430.0,0.00022465,2]
[362527421,1748351467167,-631.14,0.00022465,2]
[362527422,1748351467176,-474.74,0.00022465,2]
[362527423,1748351467187,-1038.02,0.00022465,2]
[362527424,1748351467197,-2253.58,0.00022465,2]
[362527425,1748351467208,-1807.97,0.00022465,2]
[362527426,1748351467217,-430.0,0.00022465,2]
[362527427,1748351467227,-624.22,0.00022465,2]
[362527428,1748351467237,-545.27,0.00022465,2]
[362527429,1748351467246,-489.01,0.00022465,2]
[362527430,1748351467257,-430.0,0.00022465,2]
[362527431,1748351467269,-1251.66,0.00022465,2]
[362527432,1748351467279,-430.0,0.00022465,2]
[362527433,1748351467288,-832.62,0.00022465,2]
[362527434,1748351467298,-574.93,0.00022465,2]
[362527435,1748351467311,-570.09,0.00022465,2]
[362527436,1748351467321,-823.0,0.00022537,2]
[362527437,1748351467330,-2466.57,0.00022554,2]
[362527438,1748351467343,-2933.07380438,0.00022624,7]
[362527439,1748351467354,-430.0,0.00022739,2]
[362527440,1748351467364,-430.0,0.00022739,2]
[362527441,1748351467374,-997.26,0.00022739,2]
[362527442,1748351467384,-430.0,0.00022739,2]
[362527443,1748351467394,-2536.38,0.00022739,2]
[362527444,1748351467404,-1436.42,0.00022739,2]
[362527445,1748351467414,-437.51,0.00022739,2]
[362527446,1748351467423,-975.12,0.00022739,2]
[362527447,1748351467433,-430.0,0.00022739,2]
[362527448,1748351467443,-430.0,0.00022739,2]
[362527449,1748351467453,-430.0,0.00022739,2]
[362527450,1748351467463,-430.0,0.00022739,2]
[362527451,1748351467472,-631.14,0.00022739,2]
[362527452,1748351467482,-474.74,0.00022739,2]
[362527453,1748351467491,-1038.02,0.00022739,2]
[362527454,1748351467502,-2253.58,0.00022739,2]
[362527455,1748351467512,-1807.97,0.00022739,2]
[362527456,1748351467521,-430.0,0.00022739,2]
[362527457,1748351467531,-624.22,0.00022739,2]
[362527458,1748351467622,-545.27,0.00022739,2]
[362527459,1748351467632,-489.01,0.00022739,2]
[362527460,1748351467642,-430.0,0.00022739,2]
[362527461,1748351467652,-1251.66,0.00022739,2]
[362527462,1748351467662,-430.0,0.00022739,2]
[362527463,1748351467671,-832.62,0.00022739,2]
[362527464,1748351467681,-574.93,0.00022739,2]
[362527465,1748351467691,-570.09,0.00022739,2]
[362527466,1748351467705,-2933.07380438,0.00022831,8]
[362527467,1748351467715,-2881.0,0.00022873,2]
[362527468,1748351467725,-369.21423685,0.00023013,2]
[362527469,1748351467735,-430.0,0.00023013,2]
[362527470,1748351467745,-997.26,0.00023013,2]
[362527471,1748351467756,-430.0,0.00023013,2]
[362527472,1748351467765,-2536.38,0.00023013,2]
[362527473,1748351467775,-1436.42,0.00023013,2]
[362527474,1748351467786,-437.51,0.00023013,2]
[362527475,1748351467797,-975.12,0.00023013,2]
[362527476,1748351467810,-530.17,0.00023013,2]
[362527477,1748351467819,-430.0,0.00023013,2]
[362527478,1748351467829,-430.0,0.00023013,2]
[362527479,1748351467839,-430.0,0.00023013,2]
[362527480,1748351467848,-631.14,0.00023013,2]
[362527481,1748351467858,-474.74,0.00023013,2]
[362527482,1748351467867,-1038.02,0.00023013,2]
[362527483,1748351467877,-2253.58,0.00023013,2]
[362527484,1748351467887,-1807.97,0.00023013,2]
[362527485,1748351467896,-430.0,0.00023013,2]
[362527486,1748351467906,-624.22,0.00023013,2]
[362527487,1748351467916,-545.27,0.00023013,2]
[362527488,1748351467926,-489.01,0.00023013,2]
[362527489,1748351467935,-311.26,0.00023013,2]
[362527490,1748351467945,-1251.66,0.00023013,2]
[362527491,1748351467955,-430.0,0.00023013,2]
[362527492,1748351467964,-832.62,0.00023013,2]
[362527493,1748351467974,-574.93,0.00023013,2]
[362527494,1748351467983,-570.09,0.00023013,2]
[362527495,1748351467993,-2933.07380438,0.00023038,8]
[362527496,1748351468003,-405.0,0.00023039,2]
[362527497,1748351468013,-150.325,0.00023072,2]
[362527498,1748351468024,-2933.07380438,0.00023245,8]
[362527499,1748351468034,-151.750592,0.00023287,7]
[362527500,1748351468044,-151.0,0.00023287,7]
[362527501,1748351468053,-151.0,0.00023287,7]
[362527502,1748351468066,-430.0,0.00023287,2]
[362527503,1748351468076,-997.26,0.00023287,2]
[362527504,1748351468086,-430.0,0.00023287,2]
[362527505,1748351468096,-2536.38,0.00023287,2]
[362527506,1748351468106,-1436.42,0.00023287,2]
[362527507,1748351468115,-437.51,0.00023287,2]
[362527508,1748351468126,-975.12,0.00023287,2]
[362527509,1748351468135,-430.0,0.00023287,2]
[362527510,1748351468145,-159.05,0.00023287,2]
[362527511,1748351468155,-430.0,0.00023287,2]
[362527512,1748351468165,-631.14,0.00023287,2]
[362527513,1748351468174,-474.74,0.00023287,2]
[362527514,1748351468184,-1038.02,0.00023287,2]
[362527515,1748351468194,-2253.58,0.00023287,2]
[362527516,1748351468205,-1807.97,0.00023287,2]
[362527517,1748351468214,-430.0,0.00023287,2]
[362527518,1748351468224,-624.22,0.00023287,2]
[362527519,1748351468233,-545.27,0.00023287,2]
[362527520,1748351468243,-489.01,0.00023287,2]
[362527521,1748351468254,-1251.66,0.00023287,2]
[362527522,1748351468264,-430.0,0.00023287,2]
[362527523,1748351468273,-832.62,0.00023287,2]
[362527524,1748351468283,-574.93,0.00023287,2]
[362527525,1748351468292,-570.09,0.00023287,2]
[362527526,1748351468302,-500.0,0.00023356,2]
[362527527,1748351468314,-2774.89,0.0002336,2]
[362527528,1748351468324,-2933.07380438,0.00023452,9]
[362527529,1748351468334,-258.64573,0.00023452,7]
[362527530,1748351468344,-258.64573,0.00023452,7]
[362527531,1748351468354,-5000.0,0.00023479,2]
[362527532,1748351468364,-961.0,0.000235,2]
[362527533,1748351468374,-706.0,0.000235,2]
[362527534,1748351468383,-2230.0,0.000235,2]
[362527535,1748351468394,-716.514011,0.0002352,3]
[362527536,1748351468404,-430.0,0.00023561,2]
[362527537,1748351468414,-997.26,0.00023561,2]
[362527538,1748351468424,-430.0,0.00023561,2]
[362527539,1748351468433,-2536.38,0.00023561,2]
[362527540,1748351468443,-1436.42,0.00023561,2]
[362527541,1748351468453,-437.51,0.00023561,2]
[362527542,1748351468463,-975.12,0.00023561,2]
[362527543,1748351468474,-430.0,0.00023561,2]
[362527544,1748351468484,-430.0,0.00023561,2]
[362527545,1748351468493,-631.14,0.00023561,2]
[362527546,1748351468503,-474.74,0.00023561,2]
[362527547,1748351468513,-1038.02,0.00023561,2]
[362527548,1748351468523,-2253.58,0.00023561,2]
[362527549,1748351468533,-1807.97,0.00023561,2]
[362527550,1748351468542,-430.0,0.00023561,2]
[362527551,1748351468551,-624.22,0.00023561,2]
[362527552,1748351468563,-545.27,0.00023561,2]
[362527553,1748351468573,-489.01,0.00023561,2]
[362527554,1748351468583,-1251.66,0.00023561,2]
[362527555,1748351468593,-430.0,0.00023561,2]
[362527556,1748351468603,-832.62,0.00023561,2]
[362527557,1748351468613,-574.93,0.00023561,2]
[362527558,1748351468623,-570.09,0.00023561,2]
[362527559,1748351468634,-223.0315306,0.00023655,2]
[362527560,1748351468644,-2933.07380438,0.00023659,9]
[362527561,1748351468653,-151.0,0.00023659,7]
[362527562,1748351468663,-151.0,0.00023659,7]
[362527563,1748351468673,-154.45989859,0.00023796,3]
[362527564,1748351468683,-316.0,0.00023796,3]
[362527565,1748351468693,-316.0,0.00023796,3]
[362527566,1748351468705,-316.0,0.00023796,3]
[362527567,1748351468719,-316.0,0.00023796,3]
[362527568,1748351468729,-316.0,0.00023796,3]
[362527569,1748351468739,-316.0,0.00023796,3]
[362527570,1748351468750,-316.0,0.00023796,3]
[362527571,1748351468760,-316.0,0.00023796,3]
[362527572,1748351468770,-454.1406699,0.00023796,3]
[362527573,1748351468780,-208.33333332,0.000238,3]
[362527574,1748351468792,-160.0,0.000238,3]
[362527575,1748351468803,-12656.54583329,0.000238,3]
[362527576,1748351468814,-160.0,0.000238,3]
[362527577,1748351468824,-151.0,0.00023835,2]
[362527578,1748351468834,-182.802578,0.00023835,7]
[362527579,1748351468844,-430.0,0.00023835,2]
[362527580,1748351468854,-500.0,0.00023835,2]
[362527581,1748351468864,-997.26,0.00023835,2]
[362527582,1748351468874,-430.0,0.00023835,2]
[362527583,1748351468884,-2536.38,0.00023835,2]
[362527584,1748351468893,-1436.42,0.00023835,2]
[362527585,1748351468903,-437.51,0.00023835,2]
[362527586,1748351468913,-975.12,0.00023835,2]
[362527587,1748351468923,-411.71,0.00023835,2]
[362527588,1748351468933,-524.99,0.00023835,2]
[362527589,1748351468943,-526.38315355,0.00023835,2]
[362527590,1748351469131,-104.75684645,0.00023835,2]
[362527591,1748351469142,-474.74,0.00023835,2]
[362527592,1748351469151,-1038.02,0.00023835,2]
[362527593,1748351469161,-2253.58,0.00023835,2]
[362527594,1748351469171,-1807.97,0.00023835,2]
[362527595,1748351469181,-162.63662179,0.00023835,2]
[362527596,1748351469193,-267.36337821,0.00023835,2]
[362527597,1748351469202,-624.22,0.00023835,2]
[362527598,1748351469212,-545.27,0.00023835,2]
[362527599,1748351469222,-489.01,0.00023835,2]
[362527600,1748351469232,-1251.66,0.00023835,2]
[362527601,1748351469242,-574.25,0.00023835,2]
[362527602,1748351469251,-832.62,0.00023835,2]
[362527603,1748351469261,-574.93,0.00023835,2]
[362527604,1748351469270,-570.09,0.00023835,2]
[362527605,1748351469280,-2933.07380438,0.00023866,10]
[362527606,1748351469290,-906.52727349,0.000239,2]
[362527607,1748351469299,-3446.89972224,0.00024,2]
[362527608,1748351469311,-13222.66978732,0.00024,7]
[362527609,1748351469323,-34598.47583333,0.00024,7]
[362527610,1748351469335,-1302.40698985,0.00024,7]
[362527611,1748351469347,-6292.35090533,0.00024,7]
[362527612,1748351469359,-860.08543018,0.00024,7]
[362527613,1748351469371,-13409.15828992,0.00024,7]
[362527614,1748351469383,-428.89224665,0.00024,7]
[362527615,1748351469395,-51159.68393309,0.00024,7]
[362527616,1748351469533,-4450.97264444,0.0001714,2]
[362527617,1748351469543,-300.0,0.00017312,2]
[362527618,1748351469553,-420.0,0.00018902,2]
[362527619,1748351469563,-430.0,0.00019178,2]
[362527620,1748351469573,-430.0,0.00019178,2]
[362527621,1748351469583,-430.0,0.00019178,2]
[362527622,1748351469594,-430.0,0.00019452,2]
[362527623,1748351469603,-430.0,0.00019452,2]
[362527624,1748351469613,-430.0,0.00019726,2]
[362527625,1748351469623,-430.0,0.00019726,2]
[362527626,1748351469632,-430.0,0.0002,2]
[362527627,1748351469642,-431.51,0.0002,2]
[362527628,1748351469652,-587.0,0.00020639,2]
[362527629,1748351469661,-924.77,0.00021643,2]
[362527630,1748351469671,-924.77,0.00021917,2]
[362527631,1748351469680,-924.77,0.00022191,2]
[362527632,1748351469692,-924.77,0.00022465,2]
[362527633,1748351469702,-924.77,0.00022739,2]
[362527634,1748351469717,-924.77,0.00023013,2]
[362527635,1748351469727,-924.77,0.00023287,2]
[362527636,1748351469736,-924.77,0.00023561,2]
[362527637,1748351469746,-924.77,0.00023835,2]
[362527638,1748351469755,-3705.36371856,0.00024,7]
[362527639,1748351469972,-430.0,0.00019178,2]
[362527640,1748351469983,-420.9218557,0.00019178,2]
[362527641,1748351469993,-430.0,0.00019178,2]
[362527642,1748351470002,-118.21931201,0.00019178,2]
[362527643,1748351470015,-32.78068799,0.00019178,2]
[362527644,1748351470024,-430.0,0.00019178,2]
[362527645,1748351470034,-430.0,0.00019452,2]
[362527646,1748351470043,-430.0,0.00019452,2]
[362527647,1748351470054,-430.0,0.00019726,2]
[362527648,1748351470064,-430.0,0.0002,2]
[362527649,1748351470073,-420.0,0.00022535,2]
[362527650,1748351470084,-178675.44286577,0.00024,7]
[362527651,1748351470095,-2753.35,0.00024,7]
[362527652,1748351470105,-500.0,0.00024,7]
[362527653,1748351470115,-151.0,0.00024,7]
[362527654,1748351470125,-151.0,0.00024,7]
[362527655,1748351470135,-151.0,0.00024,7]
[362527656,1748351470145,-160.0,0.00024,7]
[362527657,1748351470154,-151.0,0.00024,7]
[362527658,1748351470164,-151.0,0.00024,7]
[362527659,1748351470174,-258.64573,0.00024,7]
[362527660,1748351470184,-258.64573,0.00024,7]
[362527661,1748351470194,-2933.07380438,0.00024072,10]
[362527662,1748351470203,-430.0,0.00024109,2]
[362527663,1748351470213,-997.26,0.00024109,2]
[362527664,1748351470223,-430.0,0.00024109,2]
[362527665,1748351470233,-2536.38,0.00024109,2]
[362527666,1748351470242,-1436.42,0.00024109,2]
[362527667,1748351470252,-437.51,0.00024109,2]
[362527668,1748351470261,-975.12,0.00024109,2]
[362527669,1748351470271,-631.14,0.00024109,2]
[362527670,1748351470281,-474.74,0.00024109,2]
[362527671,1748351470290,-1038.02,0.00024109,2]
[362527672,1748351470300,-2253.58,0.00024109,2]
[362527673,1748351470311,-1807.97,0.00024109,2]
[362527674,1748351470321,-430.0,0.00024109,2]
[362527675,1748351470331,-624.22,0.00024109,2]
[362527676,1748351470342,-545.27,0.00024109,2]
[362527677,1748351470351,-489.01,0.00024109,2]
[362527678,1748351470361,-1251.66,0.00024109,2]
[362527679,1748351470371,-248.6375,0.00024109,2]
[362527680,1748351470381,-832.62,0.00024109,2]
[362527681,1748351470391,-574.93,0.00024109,2]
[362527682,1748351470401,-570.09,0.00024109,2]
[362527683,1748351470410,-924.77,0.00024109,2]
[362527684,1748351470420,-3083.20797779,0.00024165,2]
[362527685,1748351470431,-3659.53557645,0.00024168,15]
[362527686,1748351470441,-2933.07380438,0.00024279,10]
[362527687,1748351470451,-430.0,0.00024383,2]
[362527688,1748351470461,-997.26,0.00024383,2]
[362527689,1748351470471,-552.0,0.00024383,2]
[362527690,1748351470481,-2536.38,0.00024383,2]
[362527691,1748351470492,-1436.42,0.00024383,2]
[362527692,1748351470501,-437.51,0.00024383,2]
[362527693,1748351470511,-975.12,0.00024383,2]
[362527694,1748351470520,-631.14,0.00024383,2]
[362527695,1748351470530,-474.74,0.00024383,2]
[362527696,1748351470540,-1038.02,0.00024383,2]
[362527697,1748351470550,-2253.58,0.00024383,2]
[362527698,1748351470561,-1807.97,0.00024383,2]
[362527699,1748351470571,-332.46805504,0.00024383,2]
[362527700,1748351470582,-624.22,0.00024383,2]
[362527701,1748351470592,-545.27,0.00024383,2]
[362527702,1748351470602,-489.01,0.00024383,2]
[362527703,1748351470611,-1251.66,0.00024383,2]
[362527704,1748351470621,-832.62,0.00024383,2]
[362527705,1748351470630,-574.93,0.00024383,2]
[362527706,1748351470640,-570.09,0.00024383,2]
[362527707,1748351470650,-924.77,0.00024383,2]
[362527708,1748351470659,-5000.0,0.000244,2]
[362527709,1748351470668,-5000.0,0.000244,2]
[362527710,1748351470678,-5000.0,0.000244,2]
[362527711,1748351470688,-7832.33,0.000244,7]
[362527712,1748351470699,-127275.49,0.000244,2]
[362527713,1748351470709,-151.0,0.000244,7]
[362527714,1748351470719,-191.010539,0.000244,7]
[362527715,1748351470728,-151.0,0.000244,7]
[362527716,1748351470739,-151.0,0.000244,7]
[362527717,1748351470749,-258.64573,0.000244,7]
[362527718,1748351470759,-258.64573,0.000244,7]
[362527719,1748351470768,-2886.94482947,0.00024417,2]
[362527720,1748351470779,-20458.62039433,0.0002444,30]
[362527721,1748351470789,-2002.03929006,0.00024448,3]
[362527722,1748351470799,-2933.07380438,0.00024486,11]
[362527724,1748351470810,-78176.36224632,0.000245,7]
[362527725,1748351470820,-160.0,0.000245,3]
[362527726,1748351470829,-2886.94482947,0.00024551,2]
[362527727,1748351470839,-35018.35184622,0.00024578,7]
[362527728,1748351470848,-151.0,0.00024578,7]
[362527729,1748351470857,-225.66205,0.00024578,7]
[362527730,1748351470867,-258.64573,0.00024578,7]
[362527731,1748351470876,-258.645724,0.00024578,7]
[362527732,1748351470886,-580.891,0.00024585,15]
[362527733,1748351470895,-364.0317976,0.00024603,2]
[362527734,1748351470905,-364.0317976,0.00024603,2]
[362527735,1748351470914,-363.5834104,0.00024603,2]
[362527736,1748351470924,-1152.0,0.00024607,2]
[362527737,1748351470933,-160.0,0.00024629,2]
[362527738,1748351470942,-156857.0743283,0.0002463,2]
[362527739,1748351470951,-151.0,0.0002463,7]
[362527740,1748351470960,-160.0,0.00024656,2]
[362527741,1748351470970,-430.0,0.00024657,2]
[362527742,1748351470979,-997.26,0.00024657,2]
[362527743,1748351470989,-2536.38,0.00024657,2]
[362527744,1748351470999,-437.51,0.00024657,2]
[362527745,1748351471008,-1436.42,0.00024657,2]
[362527746,1748351471017,-975.12,0.00024657,2]
[362527747,1748351471027,-631.14,0.00024657,2]
[362527748,1748351471036,-474.74,0.00024657,2]
[362527749,1748351471045,-1038.02,0.00024657,2]
[362527750,1748351471057,-2253.58,0.00024657,2]
[362527751,1748351471067,-1807.97,0.00024657,2]
[362527752,1748351471076,-624.22,0.00024657,2]
[362527753,1748351471085,-545.27,0.00024657,2]
[362527754,1748351471095,-489.01,0.00024657,2]
[362527755,1748351471105,-1251.66,0.00024657,2]
[362527756,1748351471114,-497.275,0.00024657,3]
[362527757,1748351471123,-832.62,0.00024657,2]
[362527758,1748351471133,-574.93,0.00024657,2]
[362527759,1748351471142,-570.09,0.00024657,2]
[362527760,1748351471151,-924.77,0.00024657,2]
[362527761,1748351471161,-203.69505308,0.00024658,2]
[362527762,1748351471171,-303.11763203,0.00024658,2]
[362527763,1748351471181,-31151.89642761,0.0002466,7]
[362527764,1748351471190,-3699.886,0.0002468,15]
[362527765,1748351471199,-2886.94482947,0.00024685,2]
[362527766,1748351471208,-2933.07380438,0.00024693,11]
[362527767,1748351471217,-193.477403,0.0002474,2]
[362527768,1748351471227,-570.1314833,0.0002474,2]
[362527769,1748351471236,-176.2895652,0.0002474,2]
[362527770,1748351471245,-571.8642545,0.0002474,2]
[362527771,1748351471254,-309.217942,0.0002474,2]
[362527772,1748351471263,-153.0,0.0002474,2]
[362527773,1748351471273,-158.3360012,0.0002474,2]
[362527774,1748351471282,-176.2895652,0.0002474,2]
[362527775,1748351471291,-158.3360012,0.0002474,2]
[362527776,1748351471301,-571.8642545,0.0002474,2]
[362527777,1748351471313,-176.2895652,0.0002474,2]
[362527778,1748351471323,-158.3360012,0.0002474,2]
[362527779,1748351471332,-153.0,0.0002474,2]
[362527780,1748351471342,-571.8642545,0.0002474,2]
[362527781,1748351471351,-158.3360012,0.0002474,2]
[362527782,1748351471360,-176.2895652,0.0002474,2]
[362527783,1748351471370,-571.8642545,0.0002474,2]
[362527784,1748351471380,-176.2895652,0.0002474,2]
[362527785,1748351471390,-158.3360012,0.0002474,2]
[362527786,1748351471399,-153.0,0.0002474,2]
[362527787,1748351471409,-571.8642545,0.0002474,2]
[362527788,1748351471419,-182.4381755,0.0002474,2]
[362527789,1748351471429,-158.3360012,0.0002474,2]
[362527790,1748351471438,-571.8642545,0.0002474,2]
[362527791,1748351471447,-158.3360012,0.0002474,2]
[362527792,1748351471457,-571.8642545,0.0002474,2]
[362527793,1748351471466,-153.0,0.0002474,2]
[362527794,1748351471475,-157.3202404,0.0002474,2]
[362527795,1748351471485,-571.8642545,0.0002474,2]
[362527796,1748351471494,-571.8642545,0.0002474,2]
[362527797,1748351471504,-153.0,0.0002474,2]
[362527798,1748351471514,-571.8642545,0.0002474,2]
[362527799,1748351471523,-1090.7172594,0.0002474,2]
[362527800,1748351471533,-250.968229,0.0002474,2]
[362527801,1748351471543,-1630.08,0.00024794,2]
[362527802,1748351471552,-1630.08,0.00024794,2]
[362527803,1748351471569,-1630.08,0.00024794,2]
[362527804,1748351471578,-1630.08,0.00024794,2]
[362527805,1748351471588,-1630.08,0.00024794,2]
[362527806,1748351471598,-1630.08,0.00024794,2]
[362527807,1748351471607,-1630.08,0.00024794,2]
[362527808,1748351471617,-1630.08,0.00024794,2]